fUSD/lending_fUSD_20250413
["ID","MTS","AMOUNT","RATE_DAILY","PERIOD"]
[357884297,1744503045235,-500.0,0.00019726,2]
[357884298,1744503045246,-500.0,0.00019726,2]
[357884299,1744503045256,-500.0,0.00019726,2]
[357884300,1744503045265,-607.89,0.00019726,2]
[357884301,1744503045275,-500.0,0.00019726,2]
[357884302,1744503045285,-832.75,0.00019726,2]
[357884303,1744503045295,-592.46,0.00019726,2]
[357884304,1744503045305,-500.0,0.00019726,2]
[357884305,1744503045319,-500.0,0.00019726,2]
[357884306,1744503045329,-514.01,0.00019726,2]
[357884307,1744503045338,-500.0,0.00019726,2]
[357884308,1744503045348,-500.0,0.00019726,2]
[357884309,1744503045359,-500.0,0.00019726,2]
[357884310,1744503045369,-500.0,0.00019726,2]
[357884311,1744503045380,-500.0,0.00019726,2]
[357884312,1744503045392,-500.0,0.00019726,2]
[357884313,1744503045403,-721.96,0.00019726,2]
[357884314,1744503045412,-500.0,0.00019726,2]
[357884315,1744503045422,-500.0,0.00019726,2]
[357884316,1744503045432,-500.0,0.00019726,2]
[357884317,1744503045441,-500.0,0.00019726,2]
[357884318,1744503045450,-684.58,0.00019726,2]
[357884319,1744503045460,-170.80794616,0.00019726,2]
[357884320,1744503045470,-500.0,0.00019726,2]
[357884321,1744503045479,-500.0,0.00019726,2]
[357884322,1744503045489,-500.0,0.00019726,2]
[357884323,1744503045499,-500.0,0.00019726,2]
[357884324,1744503045508,-380.38241848,0.00019726,2]
[357884325,1744503045518,-500.0,0.00019726,2]
[357884326,1744503045528,-500.0,0.00019726,2]
[357884327,1744503045537,-500.0,0.00019726,2]
[357884328,1744503045547,-727.79,0.00019726,2]
[357884329,1744503045557,-718.19,0.00019726,2]
[357884330,1744503045566,-522.7,0.00019726,2]
[357884331,1744503045576,-549.21,0.00019726,2]
[357884332,1744503045585,-500.0,0.00019726,2]
[357884333,1744503045594,-500.0,0.00019726,2]
[357884334,1744503045604,-500.0,0.00019726,2]
[357884335,1744503045613,-500.0,0.00019726,2]
[357884337,1744503045623,-500.0,0.00019726,2]
[357884338,1744503045632,-500.0,0.00019726,2]
[357884339,1744503045640,-213.07062754,0.00019726,2]
[357884340,1744503045650,-527.94,0.00019726,2]
[357884341,1744503045659,-500.0,0.00019726,2]
[357884342,1744503045669,-87.98424902,0.00019726,2]
[357884343,1744503045682,-412.01575098,0.00019726,2]
[357884344,1744503045691,-500.0,0.00019726,2]
[357884345,1744503045700,-500.0,0.00019726,2]
[357884346,1744503045710,-953.43,0.00019726,2]
[357884347,1744503045719,-500.0,0.00019726,2]
[357884348,1744503045729,-500.0,0.00019726,2]
[357884349,1744503045738,-500.0,0.00019726,2]
[357884350,1744503045747,-2295.1,0.00019726,2]
[357884351,1744503045756,-652.12,0.00019726,2]
[357884352,1744503045767,-745.55,0.00019726,2]
[357884353,1744503045776,-611.31,0.00019726,2]
[357884354,1744503045785,-900.8,0.00019726,2]
[357884355,1744503045794,-500.0,0.00019726,2]
[357884356,1744503045803,-543.18,0.00019726,2]
[357884357,1744503045812,-500.0,0.00019726,2]
[357884358,1744503045822,-500.0,0.00019726,2]
[357884359,1744503045831,-500.0,0.00019726,2]
[357884360,1744503045841,-500.0,0.00019726,2]
[357884361,1744503045850,-681.77,0.00019726,2]
[357884362,1744503045859,-796.21,0.00019726,2]
[357884363,1744503045868,-756.13,0.00019726,2]
[357884364,1744503045878,-500.0,0.00019726,2]
[357884365,1744503045887,-532.08,0.00019726,2]
[357884366,1744503045896,-500.0,0.00019726,2]
[357884367,1744503045906,-500.0,0.00019726,2]
[357884368,1744503045915,-5951.98,0.00019726,2]
[357884369,1744503045924,-500.0,0.00019726,2]
[357884370,1744503045933,-500.0,0.00019726,2]
[357884371,1744503045942,-500.0,0.00019726,2]
[357884372,1744503045951,-1302.75,0.00019726,2]
[357884373,1744503045960,-713.46,0.00019726,2]
[357884374,1744503045970,-8746.28,0.00019726,2]
[357884375,1744503045979,-500.0,0.00019726,2]
[357884376,1744503045988,-500.0,0.00019726,2]
[357884377,1744503045997,-618.19,0.00019726,2]
[357884378,1744503046007,-500.0,0.00019726,2]
[357884379,1744503046016,-500.0,0.00019726,2]
[357884380,1744503046025,-500.0,0.00019726,2]
[357884381,1744503046034,-500.0,0.00019726,2]
[357884382,1744503046044,-500.0,0.00019726,2]
[357884383,1744503046053,-500.0,0.00019726,2]
[357884384,1744503046063,-500.0,0.00019726,2]
[357884385,1744503046072,-500.0,0.00019726,2]
[357884386,1744503046082,-500.0,0.00019726,2]
[357884387,1744503046091,-500.0,0.00019726,2]
[357884388,1744503046101,-1329.19,0.00019726,2]
[357884389,1744503046110,-500.0,0.00019726,2]
[357884390,1744503046119,-500.0,0.00019726,2]
[357884391,1744503046128,-500.0,0.00019726,2]
[357884392,1744503046137,-85.53884398,0.00019726,2]
[357884397,1744503047614,-414.46115602,0.00019726,2]
[357884398,1744503047623,-647.45,0.00019726,2]
[357884399,1744503047632,-500.0,0.00019726,2]
[357884400,1744503047641,-500.0,0.00019726,2]
[357884401,1744503047650,-500.0,0.00019726,2]
[357884402,1744503047659,-500.0,0.00019726,2]
[357884403,1744503047668,-500.0,0.00019726,2]
[357884404,1744503047678,-500.0,0.00019726,2]
[357884405,1744503047687,-167.80285778,0.00019726,2]
[357884406,1744503047698,-332.19714222,0.00019726,2]
[357884407,1744503047708,-500.0,0.00019726,2]
[357884408,1744503047717,-837.42,0.00019726,2]
[357884409,1744503047726,-422.32626517,0.00019726,2]
[357884410,1744503047894,-180.25085872,0.00019078,2]
[357884411,1744503047904,-77.67373483,0.00019726,2]
[357884412,1744503047913,-500.0,0.00019726,2]
[357884413,1744503047923,-500.0,0.00019726,2]
[357884414,1744503047936,-198.07982645,0.00019726,2]
[357884415,1744503047955,-301.92017355,0.00019726,2]
[357884416,1744503047965,-500.0,0.00019726,2]
[357884417,1744503047975,-2394.27765179,0.00019726,2]
[357884419,1744503084464,-169.29,0.00018819,2]
[357884422,1744503102177,151.602557,0.0003,31]
[357884423,1744503102483,151.602557,0.0003,31]
[357884424,1744503103408,151.602557,0.000305,60]
[357884425,1744503103686,151.602557,0.000305,60]
[357884428,1744503129985,169.29,0.00016712,2]
[357884431,1744503150754,150.0,0.0003141,120]
[357884462,1744503497087,197.92,0.00018697,7]
[357884466,1744503559210,-151.602557,0.00019994,3]
[357884467,1744503559241,-151.602557,0.00019997,3]
[357884468,1744503559268,-151.602557,0.00019999,3]
[357884469,1744503559315,-18094.13229209,0.0002,4]
[357884470,1744503559341,-154.70536501,0.0002,5]
[357884471,1744503559368,-2000.0,0.0002,4]
[357884472,1744503559394,-151.602557,0.0002,4]
[357884473,1744503559421,-151.602557,0.0002,4]
[357884476,1744503572122,150.0,0.0003172,120]
[357884512,1744503937136,162.63464811,9e-05,2]
[357884513,1744503937164,87.80938665,9e-05,2]
[357884515,1744504026719,170.4,0.00014717,2]
[357884516,1744504035776,341.11948596,0.00015,2]
[357884517,1744504035799,1521.33164541,0.00015,2]
[357884518,1744504049942,158.75751309,0.0001,2]
[357884520,1744504054687,-193.69378872,0.00018363,2]
[357884521,1744504080514,5410.73975358,0.0002,4]
[357884524,1744504113864,-179.21,0.00018363,2]
[357884525,1744504118792,-229.98,0.00018363,2]
[357884526,1744504119236,300.0,0.000149,2]
[357884528,1744504128982,-230.82,0.00018363,2]
[357884529,1744504135730,-150.0,0.00018363,2]
[357884533,1744504144984,-169.2879,0.00018363,2]
[357884548,1744504200946,-29.86831128,0.00018363,2]
[357884549,1744504200969,-207.68542677,0.00018416,2]
[357884550,1744504204370,2000.0,0.0002,4]
[357884561,1744504231912,-300.0,0.00018415,2]
[357884563,1744504231922,-221.61488064,0.00018416,2]
[357884565,1744504231934,-1160.05507189,0.00018416,2]
[357884567,1744504231946,-3081.98986337,0.00018416,2]
[357884569,1744504231957,-478.31588386,0.00018416,2]
[357884570,1744504231984,-2348.329902,0.00018416,2]
[357884571,1744504231995,-3515.15503149,0.00018416,2]
[357884572,1744504232011,-872.98459677,0.00018416,2]
[357884573,1744504232023,-1423.88448701,0.00018416,2]
[357884574,1744504232034,-419.38027886,0.00018416,2]
[357884575,1744504232049,-10170.60457734,0.00018416,2]
[357884576,1744504232059,-230.85,0.00018429,2]
[357884577,1744504232068,-1000.0,0.00018661,2]
[357884578,1744504232078,-845.91,0.00018691,2]
[357884579,1744504232087,-598.19461313,0.0001884,2]
[357884580,1744504232097,-2026.54,0.00018841,2]
[357884581,1744504232106,-188.08,0.00018848,2]
[357884582,1744504232115,-201.63176333,0.00018855,2]
[357884583,1744504232125,-250.0,0.00019,2]
[357884584,1744504232134,-377.0,0.00019068,2]
[357884585,1744504232144,-1000.0,0.00019078,2]
[357884586,1744504232153,-535.0696,0.00019078,2]
[357884587,1744504232162,-194.9977,0.00019078,2]
[357884588,1744504232171,-315.6736,0.00019078,2]
[357884589,1744504232181,-1439.4654,0.00019078,2]
[357884590,1744504232190,-500.0,0.00019173,2]
[357884591,1744504232199,-340.46133964,0.00019173,2]
[357884592,1744504232208,-500.0,0.00019178,2]
[357884593,1744504232217,-500.0,0.00019178,2]
[357884594,1744504232226,-500.0,0.00019178,2]
[357884595,1744504232236,-500.0,0.00019178,2]
[357884596,1744504232245,-423.75868986,0.00019178,2]
[357884597,1744504232254,-500.0,0.00019178,2]
[357884598,1744504232263,-500.0,0.00019178,2]
[357884599,1744504232272,-500.0,0.00019178,2]
[357884600,1744504232282,-266.47341996,0.00019178,2]
[357884601,1744504232291,-500.0,0.00019178,2]
[357884602,1744504232300,-500.0,0.00019178,2]
[357884603,1744504232309,-200.0,0.00019178,2]
[357884604,1744504232319,-500.0,0.00019178,2]
[357884605,1744504232328,-500.0,0.00019178,2]
[357884606,1744504232337,-500.0,0.00019178,2]
[357884608,1744504232346,-627.53,0.00019178,2]
[357884610,1744504232356,-500.0,0.00019178,2]
[357884612,1744504232365,-500.0,0.00019178,2]
[357884613,1744504232374,-500.0,0.00019178,2]
[357884614,1744504232383,-500.0,0.00019178,2]
[357884615,1744504232392,-500.0,0.00019178,2]
[357884616,1744504232402,-500.0,0.00019178,2]
[357884617,1744504232411,-500.0,0.00019178,2]
[357884618,1744504232420,-500.0,0.00019178,2]
[357884619,1744504232429,-500.0,0.00019178,2]
[357884620,1744504232439,-500.0,0.00019178,2]
[357884621,1744504232448,-500.0,0.00019178,2]
[357884622,1744504232457,-463.42081484,0.00019178,2]
[357884623,1744504232466,-500.0,0.00019178,2]
[357884624,1744504232476,-556.4,0.00019178,2]
[357884625,1744504232485,-666.97,0.00019178,2]
[357884626,1744504232494,-500.0,0.00019178,2]
[357884627,1744504232504,-500.0,0.00019178,2]
[357884628,1744504232513,-500.0,0.00019178,2]
[357884629,1744504232522,-500.0,0.00019178,2]
[357884630,1744504232532,-682.71,0.00019178,2]
[357884631,1744504232541,-500.0,0.00019178,2]
[357884632,1744504232550,-573.07786052,0.00019178,2]
[357884633,1744504232559,-500.0,0.00019178,2]
[357884634,1744504232569,-500.0,0.00019178,2]
[357884635,1744504232578,-500.0,0.00019178,2]
[357884636,1744504232587,-543.08,0.00019178,2]
[357884637,1744504232596,-235.24963362,0.00019178,2]
[357884638,1744504232606,-500.0,0.00019178,2]
[357884639,1744504232615,-500.0,0.00019178,2]
[357884640,1744504232624,-786.57558499,0.00019178,2]
[357884641,1744504232645,-1034.42441501,0.00019178,2]
[357884642,1744504232655,-500.0,0.00019178,2]
[357884643,1744504232664,-500.0,0.00019178,2]
[357884644,1744504232676,-500.0,0.00019178,2]
[357884645,1744504232686,-500.0,0.00019178,2]
[357884646,1744504232699,-500.0,0.00019178,2]
[357884647,1744504232708,-500.0,0.00019178,2]
[357884648,1744504232718,-500.0,0.00019178,2]
[357884649,1744504232728,-500.0,0.00019178,2]
[357884650,1744504232737,-500.0,0.00019178,2]
[357884651,1744504232746,-500.0,0.00019178,2]
[357884652,1744504232755,-557.24,0.00019178,2]
[357884653,1744504232765,-500.0,0.00019178,2]
[357884654,1744504232774,-500.0,0.00019178,2]
[357884655,1744504232783,-500.0,0.00019178,2]
[357884656,1744504232793,-500.0,0.00019178,2]
[357884657,1744504232802,-492.10354454,0.00019178,2]
[357884658,1744504232811,-500.0,0.00019178,2]
[357884659,1744504232822,-500.0,0.00019178,2]
[357884660,1744504232832,-763.35,0.00019178,2]
[357884661,1744504232842,-500.0,0.00019178,2]
[357884662,1744504232852,-500.0,0.00019178,2]
[357884663,1744504232863,-500.0,0.00019178,2]
[357884664,1744504232874,-500.0,0.00019178,2]
[357884665,1744504232885,-500.0,0.00019178,2]
[357884666,1744504232895,-500.0,0.00019178,2]
[357884667,1744504232905,-500.0,0.00019178,2]
[357884668,1744504232915,-500.0,0.00019178,2]
[357884669,1744504232925,-500.0,0.00019178,2]
[357884670,1744504232936,-661.8,0.00019178,2]
[357884671,1744504232947,-624.28,0.00019178,2]
[357884672,1744504232956,-403.96020779,0.00019178,2]
[357884673,1744504232967,-500.0,0.00019178,2]
[357884674,1744504232978,-500.0,0.00019178,2]
[357884675,1744504232989,-500.0,0.00019178,2]
[357884676,1744504232999,-500.0,0.00019178,2]
[357884677,1744504233008,-354.43729716,0.00019178,2]
[357884678,1744504233021,-145.56270284,0.00019178,2]
[357884679,1744504233031,-500.0,0.00019178,2]
[357884680,1744504233042,-500.0,0.00019178,2]
[357884681,1744504233052,-500.0,0.00019178,2]
[357884682,1744504233062,-500.0,0.00019178,2]
[357884683,1744504233072,-503.44,0.00019178,2]
[357884684,1744504233081,-500.0,0.00019178,2]
[357884685,1744504233091,-500.0,0.00019178,2]
[357884686,1744504233101,-658.34,0.00019178,2]
[357884687,1744504233110,-500.0,0.00019178,2]
[357884688,1744504233120,-500.0,0.00019178,2]
[357884689,1744504233129,-500.0,0.00019178,2]
[357884690,1744504233140,-500.0,0.00019178,2]
[357884691,1744504233149,-500.0,0.00019178,2]
[357884692,1744504233160,-500.0,0.00019178,2]
[357884693,1744504233170,-500.0,0.00019178,2]
[357884694,1744504233180,-597.56,0.00019178,2]
[357884695,1744504233448,-500.0,0.00019178,2]
[357884696,1744504233459,-245.12078085,0.00019178,2]
[357884697,1744504233495,-315.24921915,0.00019178,2]
[357884698,1744504233504,-500.0,0.00019178,2]
[357884699,1744504233514,-500.0,0.00019178,2]
[357884700,1744504233523,-500.0,0.00019178,2]
[357884701,1744504233533,-696.68,0.00019178,2]
[357884702,1744504233544,-4966.23,0.00019178,2]
[357884703,1744504233553,-500.0,0.00019178,2]
[357884704,1744504233562,-500.0,0.00019178,2]
[357884705,1744504233572,-5207.98,0.00019178,2]
[357884706,1744504233581,-500.0,0.00019178,2]
[357884707,1744504233590,-500.0,0.00019178,2]
[357884708,1744504233599,-1139.9,0.00019178,2]
[357884709,1744504233609,-500.0,0.00019178,2]
[357884710,1744504233618,-500.0,0.00019178,2]
[357884711,1744504233628,-661.62,0.00019178,2]
[357884712,1744504233637,-3507.62,0.00019178,2]
[357884713,1744504233646,-500.0,0.00019178,2]
[357884714,1744504233656,-596.55,0.00019178,2]
[357884715,1744504233666,-656.36,0.00019178,2]
[357884716,1744504233679,-500.0,0.00019178,2]
[357884717,1744504233688,-500.0,0.00019178,2]
[357884718,1744504233698,-500.0,0.00019178,2]
[357884719,1744504233708,-187.8691876,0.00019178,2]
[357884720,1744504233718,-150.0,0.00019178,2]
[357884721,1744504233727,-500.0,0.00019178,2]
[357884722,1744504233738,-566.52,0.00019178,2]
[357884723,1744504233751,-500.0,0.00019178,2]
[357884724,1744504233761,-500.0,0.00019178,2]
[357884725,1744504233770,-500.0,0.00019178,2]
[357884726,1744504233780,-500.0,0.00019178,2]
[357884727,1744504233789,-500.0,0.00019178,2]
[357884728,1744504233798,-500.0,0.00019178,2]
[357884729,1744504233807,-500.0,0.00019178,2]
[357884730,1744504233815,-670.06,0.00019178,2]
[357884731,1744504233824,-500.0,0.00019178,2]
[357884732,1744504233833,-500.0,0.00019178,2]
[357884733,1744504233843,-500.0,0.00019178,2]
[357884734,1744504233852,-500.0,0.00019178,2]
[357884735,1744504233861,-500.0,0.00019178,2]
[357884736,1744504233870,-500.0,0.00019178,2]
[357884737,1744504233880,-500.0,0.00019178,2]
[357884738,1744504233890,-500.0,0.00019178,2]
[357884739,1744504233899,-565.45744612,0.00019178,2]
[357884740,1744504233908,-500.0,0.00019178,2]
[357884741,1744504233917,-500.0,0.00019178,2]
[357884742,1744504233927,-350.71504327,0.00019178,2]
[357884743,1744504233936,-500.0,0.00019178,2]
[357884744,1744504233946,-500.0,0.00019178,2]
[357884745,1744504233955,-540.91,0.00019178,2]
[357884746,1744504233964,-500.0,0.00019178,2]
[357884747,1744504233975,-500.0,0.00019178,2]
[357884748,1744504233985,-500.0,0.00019178,2]
[357884749,1744504233994,-500.0,0.00019178,2]
[357884750,1744504234005,-43922.24,0.00019178,2]
[357884751,1744504234014,-500.0,0.00019178,2]
[357884752,1744504234023,-913.41,0.00019178,2]
[357884753,1744504234032,-500.0,0.00019178,2]
[357884754,1744504234042,-500.0,0.00019178,2]
[357884755,1744504234051,-500.0,0.00019178,2]
[357884756,1744504234060,-1163.04,0.00019178,2]
[357884757,1744504234069,-500.0,0.00019178,2]
[357884758,1744504234079,-482.55839764,0.00019178,2]
[357884759,1744504234088,-732.74,0.00019178,2]
[357884760,1744504234098,-500.0,0.00019178,2]
[357884761,1744504234107,-500.0,0.00019178,2]
[357884762,1744504234117,-218.03486165,0.00019178,2]
[357884763,1744504234126,-500.0,0.00019178,2]
[357884764,1744504234135,-500.0,0.00019178,2]
[357884765,1744504234144,-500.0,0.00019178,2]
[357884766,1744504234153,-500.0,0.00019178,2]
[357884767,1744504234162,-500.0,0.00019178,2]
[357884768,1744504234171,-512.36,0.00019178,2]
[357884769,1744504234180,-200.0,0.00019178,2]
[357884770,1744504234189,-500.0,0.00019178,2]
[357884771,1744504234198,-500.0,0.00019178,2]
[357884772,1744504234207,-500.0,0.00019178,2]
[357884773,1744504234216,-500.0,0.00019178,2]
[357884774,1744504234225,-500.0,0.00019178,2]
[357884775,1744504234234,-500.0,0.00019178,2]
[357884776,1744504234244,-500.0,0.00019178,2]
[357884777,1744504234253,-500.0,0.00019178,2]
[357884778,1744504234263,-2114.07,0.00019178,2]
[357884779,1744504234272,-500.0,0.00019178,2]
[357884780,1744504234282,-1524.67,0.00019178,2]
[357884781,1744504234291,-500.0,0.00019178,2]
[357884782,1744504234301,-2354.66,0.00019178,2]
[357884783,1744504234310,-500.0,0.00019178,2]
[357884784,1744504234319,-223.68735219,0.00019178,2]
[357884785,1744504234338,-500.0,0.00019178,2]
[357884786,1744504234352,-500.0,0.00019178,2]
[357884787,1744504234362,-500.0,0.00019178,2]
[357884788,1744504234371,-606.66,0.00019178,2]
[357884789,1744504234380,-873.98,0.00019178,2]
[357884790,1744504234390,-500.0,0.00019178,2]
[357884791,1744504234400,-2287.83,0.00019178,2]
[357884792,1744504234410,-2103.85,0.00019178,2]
[357884793,1744504234419,-500.0,0.00019178,2]
[357884794,1744504234428,-689.71,0.00019178,2]
[357884795,1744504234438,-755.56,0.00019178,2]
[357884796,1744504234447,-500.0,0.00019178,2]
[357884797,1744504234456,-1383.92,0.00019178,2]
[357884798,1744504234465,-500.0,0.00019178,2]
[357884799,1744504234475,-683.42,0.00019178,2]
[357884800,1744504234484,-500.0,0.00019178,2]
[357884801,1744504234493,-825.73,0.00019178,2]
[357884802,1744504234504,-500.0,0.00019178,2]
[357884803,1744504234513,-500.0,0.00019178,2]
[357884804,1744504234523,-578.27,0.00019178,2]
[357884805,1744504234532,-500.0,0.00019178,2]
[357884806,1744504234542,-500.0,0.00019178,2]
[357884807,1744504234551,-500.0,0.00019178,2]
[357884808,1744504234561,-695.5,0.00019178,2]
[357884809,1744504234570,-644.28197626,0.00019178,2]
[357884810,1744504234580,-500.0,0.00019178,2]
[357884811,1744504234589,-169.54,0.00019212,2]
[357884812,1744504234598,-500.0,0.00019288,2]
[357884813,1744504234607,-17354.4948,0.00019352,2]
[357884814,1744504234617,-268.9476,0.00019352,2]
[357884815,1744504234626,-1361.527372,0.00019399,2]
[357884816,1744504234636,-1821.0,0.00019452,2]
[357884817,1744504234645,-500.0,0.00019452,2]
[357884818,1744504234654,-151.26312975,0.00019452,2]
[357884819,1744504234664,-500.0,0.00019452,2]
[357884820,1744504234676,-500.0,0.00019452,2]
[357884821,1744504234685,-500.0,0.00019452,2]
[357884822,1744504234696,-500.0,0.00019452,2]
[357884823,1744504234706,-500.0,0.00019452,2]
[357884824,1744504234715,-500.0,0.00019452,2]
[357884825,1744504234724,-627.53,0.00019452,2]
[357884826,1744504234734,-500.0,0.00019452,2]
[357884827,1744504234743,-500.0,0.00019452,2]
[357884828,1744504234755,-500.0,0.00019452,2]
[357884829,1744504234765,-500.0,0.00019452,2]
[357884830,1744504234775,-500.0,0.00019452,2]
[357884831,1744504234784,-500.0,0.00019452,2]
[357884832,1744504234793,-500.0,0.00019452,2]
[357884833,1744504234803,-500.0,0.00019452,2]
[357884834,1744504234813,-556.4,0.00019452,2]
[357884835,1744504234822,-666.97,0.00019452,2]
[357884836,1744504234831,-500.0,0.00019452,2]
[357884837,1744504234841,-500.0,0.00019452,2]
[357884838,1744504234851,-500.0,0.00019452,2]
[357884839,1744504234861,-682.71,0.00019452,2]
[357884840,1744504234870,-500.0,0.00019452,2]
[357884841,1744504234880,-500.0,0.00019452,2]
[357884842,1744504234889,-500.0,0.00019452,2]
[357884843,1744504234899,-543.08,0.00019452,2]
[357884844,1744504234908,-500.0,0.00019452,2]
[357884845,1744504234918,-500.0,0.00019452,2]
[357884846,1744504234927,-500.0,0.00019452,2]
[357884847,1744504234936,-500.0,0.00019452,2]
[357884848,1744504234945,-500.0,0.00019452,2]
[357884849,1744504234955,-142.98951968,0.00019452,2]
[357884850,1744504234969,-357.01048032,0.00019452,2]
[357884851,1744504234978,-33.86751968,0.00019452,2]
[357884852,1744504234989,-313.92303194,0.00019452,2]
[357884853,1744504235001,-152.20944838,0.00019452,2]
[357884854,1744504235010,-303.64055162,0.00019452,2]
[357884855,1744504235022,-196.35944838,0.00019452,2]
[357884856,1744504235031,-500.0,0.00019452,2]
[357884857,1744504235041,-500.0,0.00019452,2]
[357884858,1744504235050,-500.0,0.00019452,2]
[357884859,1744504235060,-557.24,0.00019452,2]
[357884860,1744504235070,-500.0,0.00019452,2]
[357884861,1744504235079,-434.90874448,0.00019452,2]
[357884862,1744504235092,-65.09125552,0.00019452,2]
[357884863,1744504235102,-500.0,0.00019452,2]
[357884864,1744504235112,-427.03519048,0.00019452,2]
[357884865,1744504235121,-311.68618674,0.00019452,2]
[357884866,1744504235133,-188.31381326,0.00019452,2]
[357884867,1744504235142,-500.0,0.00019452,2]
[357884868,1744504235151,-8.30663408,0.00019452,2]
[357884869,1744504235162,-422.3963079,0.00019452,2]
[357884870,1744504235187,-332.64705802,0.00019452,2]
[357884871,1744504235197,-500.0,0.00019452,2]
[357884872,1744504235207,-500.0,0.00019452,2]
[357884873,1744504235216,-500.0,0.00019452,2]
[357884874,1744504235227,-578.35387218,0.00019452,2]
[357884875,1744504235236,-500.0,0.00019452,2]
[357884876,1744504235246,-500.0,0.00019452,2]
[357884877,1744504235255,-500.0,0.00019452,2]
[357884878,1744504235264,-500.0,0.00019452,2]
[357884879,1744504235274,-500.0,0.00019452,2]
[357884880,1744504235284,-71.55011399,0.00019452,2]
[357884881,1744504235329,-590.24988601,0.00019452,2]
[357884882,1744504235339,-3.08610544,0.00019452,2]
[357884883,1744504235350,-401.7502562,0.00019452,2]
[357884884,1744504235372,-219.44363836,0.00019452,2]
[357884885,1744504235381,-500.0,0.00019452,2]
[357884886,1744504235390,-500.0,0.00019452,2]
[357884887,1744504235399,-350.12146679,0.00019452,2]
[357884888,1744504235411,-149.87853321,0.00019452,2]
[357884889,1744504235421,-262.52965668,0.00019452,2]
[357884891,1744504237984,-500.0,0.00019178,2]
[357884892,1744504237994,-237.47034332,0.00019452,2]
[357884893,1744504238003,-500.0,0.00019452,2]
[357884894,1744504238012,-500.0,0.00019452,2]
[357884895,1744504238021,-500.0,0.00019452,2]
[357884896,1744504238030,-503.44,0.00019452,2]
[357884897,1744504238039,-500.0,0.00019452,2]
[357884898,1744504238047,-500.0,0.00019452,2]
[357884899,1744504238056,-658.34,0.00019452,2]
[357884900,1744504238065,-500.0,0.00019452,2]
[357884901,1744504238074,-500.0,0.00019452,2]
[357884902,1744504238082,-500.0,0.00019452,2]
[357884903,1744504238091,-500.0,0.00019452,2]
[357884904,1744504238100,-500.0,0.00019452,2]
[357884905,1744504238109,-597.56,0.00019452,2]
[357884906,1744504238118,-500.0,0.00019452,2]
[357884907,1744504238127,-560.37,0.00019452,2]
[357884908,1744504238136,-696.68,0.00019452,2]
[357884909,1744504238147,-4966.23,0.00019452,2]
[357884910,1744504238156,-500.0,0.00019452,2]
[357884911,1744504238165,-500.0,0.00019452,2]
[357884912,1744504238174,-802.83791973,0.00019452,2]
[357884913,1744504238216,-298.0,0.00019452,2]
[357884914,1744504238227,-4107.14208027,0.00019452,2]
[357884915,1744504238236,-500.0,0.00019452,2]
[357884916,1744504238245,-500.0,0.00019452,2]
[357884917,1744504238255,-1139.9,0.00019452,2]
[357884918,1744504238264,-500.0,0.00019452,2]